bitfinex-derivatives/quotes_ETHF0:USTF0_20251118
["timestamp","ask_amount","ask_price","bid_price","bid_amount"]
[1763476167265,0.2748,3065.0,3064.7,3.39719]
[1763476167574,0.2748,3065.0,3064.8,0.52917]
[1763476168076,0.2748,3065.0,3064.9,0.52916]
[1763476168579,0.2748,3065.5,3065.2,0.5291]
[1763476169474,0.2748,3065.5,3065.1,0.52912]
[1763476169675,0.2748,3065.5,3064.9,1.39431552]
[1763476170179,0.4683,3065.0,3064.9,0.86516552]
[1763476170373,0.7301,3064.8,3064.7,3.73316552]
[1763476170572,0.2618,3064.8,3064.7,1.39436552]
[1763476172376,0.2748,3065.5,3065.0,0.52912]
[1763476172574,0.2748,3065.5,3065.2,0.52909]
[1763476172779,0.2748,3065.5,3065.3,0.52907]
[1763476173775,0.2748,3065.5,3065.0,0.86303548]
[1763476173986,0.2748,3065.5,3065.3,0.52907]
[1763476174276,0.27980454,3066.0,3065.6,0.52903]
[1763476174578,0.27980454,3066.0,3065.3,1.14335241]
[1763476174579,0.4683,3065.4,3065.3,1.38924534]
[1763476174871,0.2618,3065.5,3065.4,0.52907]
[1763476175879,0.27980454,3066.0,3065.9,0.52899]
[1763476176680,0.2748,3066.5,3066.1,0.52895]
[1763476176875,0.2618,3066.0,3065.9,0.85954002]
[1763476177077,0.7301,3066.0,3065.8,1.38853002]
[1763476177378,0.7301,3066.0,3065.9,1.38853002]
[1763476177570,0.73411442,3066.0,3065.9,0.85954002]
[1763476177777,0.4683,3065.9,3065.7,0.85954002]
[1763476177977,0.26581442,3066.0,3065.9,0.52899]
[1763476178177,0.26581442,3066.0,3065.9,1.38853002]
[1763476178380,0.26581442,3066.0,3065.9,0.85954002]
[1763476178381,0.73411442,3066.0,3065.9,0.85954002]
[1763476178574,0.4683,3065.9,3065.8,1.38854002]
[1763476178974,0.2618,3066.0,3065.7,1.14335241]
[1763476179174,0.2618,3066.0,3065.9,1.3896696]
[1763476179482,0.4683,3065.9,3065.8,0.8606796]
[1763476179868,0.26410294,3066.0,3065.8,1.3896896]
[1763476180069,0.26410294,3066.0,3065.8,0.8606796]
[1763476180274,0.26410294,3066.0,3065.8,1.3896896]
[1763476180876,0.26410294,3066.0,3065.8,0.52901]
[1763476181179,0.26410294,3066.0,3065.8,1.3896796]
[1763476181379,0.26410294,3066.0,3065.8,0.8606796]
[1763476181579,0.60760313,3067.3,3065.8,4.40415241]
[1763476181876,0.2618,3068.0,3067.2,1.71502862]
[1763476182073,0.2618,3068.0,3067.8,1.14725032]
[1763476182276,0.2618,3068.0,3067.9,0.85872426]
[1763476182477,0.73282122,3068.0,3067.9,0.39645335]
[1763476182675,0.4683,3067.7,3067.6,0.00489325]
[1763476182875,0.4683,3067.7,3066.6,1.71502862]
[1763476182876,0.4683,3066.9,3066.1,1.14725032]
[1763476183179,0.2618,3067.2,3065.2,2.973]
[1763476183180,0.2618,3065.4,3065.2,2.25019255]
[1763476183388,0.2618,3065.4,3065.0,1.14796325]
[1763476183579,0.2618,3064.8,3064.5,1.14796325]
[1763476183885,0.4683,3064.6,3064.5,0.00283728]
[1763476185383,0.26419803,3064.8,3064.5,0.00283728]
[1763476185881,0.26419803,3064.8,3064.5,0.53205728]
[1763476186889,0.4683,3064.1,3063.7,1.75373335]
[1763476187183,0.4683,3062.9,3061.2,2.28670483]
[1763476187380,0.2618,3063.0,3061.3,2.28670483]
[1763476187578,0.2618,3063.0,3062.6,0.52955]
[1763476187978,0.2618,3063.0,3062.7,0.52953]
[1763476188280,0.00489325,3063.1,3063.0,0.52949]
[1763476188989,0.2618,3063.0,3062.6,0.00349085]
[1763476189390,0.4683,3062.7,3062.6,0.00349085]
[1763476191088,0.4683,3062.6,3062.5,0.00489325]
[1763476191285,0.2618,3062.4,3062.0,0.52966]
[1763476191486,0.2618,3062.4,3062.1,0.52964]
[1763476191685,0.4683,3062.2,3061.9,0.52967]
[1763476191993,0.4683,3062.2,3060.3,2.28670483]
[1763476192191,0.2618,3061.1,3061.0,0.52982]
[1763476192393,0.00489325,3061.6,3060.9,0.00489325]
[1763476192797,0.2618,3061.1,3060.9,0.53474325]
[1763476193106,0.2618,3061.1,3061.0,0.52982]
[1763476193397,0.00489325,3061.6,3060.9,0.00489325]
[1763476193702,0.4683,3061.0,3060.9,0.00489325]
[1763476194010,0.4683,3061.0,3060.3,0.0027014]
[1763476194195,0.2618,3061.1,3060.3,0.0027014]
[1763476194196,0.2618,3060.4,3060.3,0.0027014]
[1763476194503,0.7301,3060.4,3060.3,0.0027014]
[1763476194802,0.7301,3060.4,3060.3,0.39077475]
[1763476195197,0.2618,3060.4,3060.3,0.39077475]
[1763476196297,0.2618,3061.1,3060.3,0.39077475]
[1763476196500,0.2618,3061.1,3060.8,0.52986]
[1763476196697,0.2618,3061.1,3060.9,0.38807335]
[1763476197002,0.2618,3061.1,3060.3,0.0027014]
[1763476197003,0.2618,3060.4,3060.3,0.0027014]
[1763476197298,0.2618,3060.4,3060.3,0.38982616]
[1763476197503,0.2618,3060.4,3060.0,0.00328932]
[1763476198499,0.2618,3060.4,3060.0,0.00658726]
[1763476199006,0.3288,3059.7,3059.3,0.53013]
[1763476199400,0.3288,3059.7,3058.7,0.03269416]
[1763476199606,0.3288,3059.0,3058.7,0.03269416]
[1763476200006,0.33188418,3059.0,3058.8,0.53021]
[1763476200207,0.33188418,3059.0,3058.7,0.03528363]
[1763476200406,0.33188418,3059.0,3055.8,4.00173345]
[1763476200407,6.33188418,3059.0,3056.0,2.28670483]
[1763476200609,0.3288,3057.6,3054.8,12.87670483]
[1763476200901,0.3288,3058.3,3057.8,0.53038]
[1763476201108,0.3288,3058.3,3056.4,8.128]
[1763476201297,0.0049014,3058.4,3058.3,0.5303]
[1763476201500,0.00308418,3059.0,3058.9,0.5302]
[1763476201699,0.3288,3060.4,3058.4,3.2688]
[1763476202307,0.3288,3060.4,3058.3,0.00329418]
[1763476202503,1.4e-06,3059.3,3058.7,0.0049014]
[1763476202703,0.3288,3060.4,3059.9,0.53001]
[1763476202906,0.3288,3060.4,3058.9,40.8]
[1763476203109,0.3288,3060.4,3059.3,0.53012]
[1763476203403,0.3288,3060.4,3058.9,40.8]
[1763476203599,0.0049014,3060.0,3059.3,0.53012]
[1763476203806,0.0049014,3060.0,3059.6,0.53006]
[1763476203996,0.0049014,3060.0,3058.9,40.8]
[1763476204207,0.3288,3059.2,3058.7,0.5351314]
[1763476204503,0.0049014,3060.0,3059.4,0.5301]
[1763476204708,0.0049014,3060.0,3059.8,0.53003]
[1763476205708,0.00325986,3060.4,3060.3,0.52996]
[1763476206116,0.3288,3061.6,3061.0,0.52984]
[1763476206411,0.3288,3063.2,3061.1,3.2664]
[1763476206604,0.3288,3063.2,3063.0,0.52948]
[1763476206914,0.0049014,3063.4,3063.3,0.52944]
[1763476207108,0.3288,3064.0,3063.7,0.52936]
[1763476207305,0.33157732,3064.0,3063.3,2.71970622]
[1763476207615,0.3288,3064.8,3063.3,5.98370622]
[1763476207913,0.3288,3064.8,3064.1,0.5293]
[1763476208116,0.3337014,3064.8,3064.1,0.0049014]
[1763476208321,0.3288,3064.0,3063.3,0.00270622]
[1763476208506,0.3319615,3064.0,3063.3,0.00270622]
[1763476208913,0.3319615,3064.0,3063.8,0.52934]
[1763476209110,0.3319615,3064.0,3063.3,0.00270622]
[1763476209111,0.3337014,3064.8,3064.4,0.52924]
[1763476209503,0.3337014,3064.8,3064.3,0.0049014]
[1763476209907,0.3288,3066.3,3065.1,0.52911]
[1763476210107,0.3288,3066.3,3064.8,3.328]
[1763476210809,0.3288,3066.3,3064.9,3.40186621]
[1763476211006,0.00489309,3065.9,3064.9,3.36726621]
[1763476211207,0.3288,3067.2,3066.4,0.52889]
[1763476211516,0.3288,3067.2,3065.9,8.167]
[1763476212011,0.3288,3067.2,3066.7,0.52884]
[1763476212227,0.3288,3068.1,3067.3,0.52873]
[1763476212410,0.3288,3068.1,3067.4,0.52871]
[1763476212713,0.00489309,3068.0,3067.4,0.00489309]
[1763476213306,0.00848264,3068.0,3067.6,0.52869]
[1763476213506,0.00848264,3068.0,3067.4,0.00489309]
[1763476214418,6.0,3067.9,3066.7,0.00404847]
[1763476214713,0.3288,3067.0,3066.7,0.00404847]
[1763476215012,0.00848264,3068.0,3067.1,0.52877]
[1763476215215,0.00848264,3068.0,3066.7,0.00404847]
[1763476215408,0.00848264,3068.0,3067.0,0.00489309]
[1763476216004,0.00848264,3068.0,3067.3,0.52874]
[1763476216208,0.00848264,3068.0,3066.7,0.00404847]
[1763476216209,0.3288,3067.0,3066.7,0.00404847]
[1763476216718,0.00848264,3068.0,3066.7,0.00404847]
[1763476217216,0.00848264,3068.0,3066.7,0.53289847]
[1763476217418,0.00848264,3068.0,3067.1,0.52877]
[1763476217709,0.00848264,3068.0,3067.0,0.00489309]
[1763476217710,0.3288,3067.2,3067.0,0.00489309]
[1763476218015,0.00848264,3068.0,3067.0,0.53368309]
[1763476218212,0.00848264,3068.0,3067.0,0.00489309]
[1763476218417,0.3288,3067.2,3067.0,0.00489309]
[1763476218715,0.3288,3067.2,3064.1,1.12244827]
[1763476219022,0.3288,3067.2,3063.8,5.732]
[1763476219202,3.5896,3067.2,3065.1,0.52912]
[1763476219407,2.175,3067.1,3064.3,0.52926]
[1763476219603,3.5904,3067.2,3063.8,5.732]
[1763476219919,0.3288,3065.4,3065.2,0.00489309]
[1763476220113,0.33109133,3065.4,3065.2,0.00489309]
[1763476221508,0.33109133,3065.4,3065.2,0.53398309]
[1763476221807,0.33109133,3065.4,3065.2,0.00489309]
[1763476222007,0.33109133,3065.4,3064.6,0.52921]
[1763476222218,0.33109133,3065.4,3063.9,40.8]
[1763476222403,0.00489309,3065.8,3063.9,46.8]
[1763476222604,0.3288,3066.3,3064.0,10.19150743]
[1763476222807,0.3288,3066.3,3066.1,0.52895]
[1763476223008,0.3288,3067.2,3065.4,8.152]
[1763476223316,0.3288,3067.2,3067.0,0.52879]
[1763476223514,0.3114,3067.2,3067.0,0.00398725]
[1763476223712,0.31471489,3067.2,3067.0,0.00398725]
[1763476223911,0.31471489,3067.2,3066.8,0.00489309]
[1763476224118,0.31471489,3067.2,3065.9,40.8]
[1763476224506,0.31471489,3067.2,3066.1,0.52894]
[1763476224709,0.31471489,3067.2,3065.9,40.8]
[1763476225008,0.3114,3066.3,3065.9,0.00252834]
[1763476225814,0.3114,3066.3,3065.0,10.58]
[1763476226015,0.3114,3066.3,3063.4,51.379]
[1763476226217,3.5738,3066.3,3063.9,0.52933]
[1763476226415,0.3114,3066.3,3064.3,0.52926]
[1763476226713,0.00489309,3065.6,3064.3,0.0037334]
[1763476227115,0.00489309,3065.6,3064.3,0.5329934]
[1763476227315,0.00489309,3065.6,3064.4,0.52924]
[1763476227621,0.00489309,3065.6,3064.3,0.5329934]
[1763476227818,0.00489309,3065.6,3064.9,0.52916]
[1763476228018,0.3114,3066.3,3064.3,0.0037334]
[1763476228718,0.4774,3066.3,3064.3,0.5329934]
[1763476228921,0.00489309,3065.6,3065.0,0.00489309]
[1763476229423,0.00489309,3065.6,3065.0,0.53403309]
[1763476229628,0.3114,3066.3,3065.9,0.52899]
[1763476229813,0.3114,3066.3,3065.7,0.52901]
[1763476230120,0.3193,3065.4,3065.3,0.52909]
[1763476230322,0.3114,3066.3,3065.0,0.00489309]
[1763476230532,0.3193,3065.4,3065.0,0.00489309]
[1763476231025,0.3193,3065.4,3064.5,0.52921]
[1763476231226,0.3114,3066.3,3064.3,0.0037334]
[1763476231416,0.31471489,3067.2,3064.3,0.0037334]
[1763476231417,0.31471489,3067.2,3065.5,40.8]
[1763476231616,0.3193,3069.0,3067.4,0.52872]
[1763476231822,0.3193,3069.0,3065.6,0.7]
[1763476231823,0.18218733,3068.1,3067.3,0.52873]
[1763476232023,0.3193,3069.0,3066.8,8.152]
[1763476232329,0.3193,3069.9,3067.4,44.44762366]
[1763476232520,0.3193,3069.0,3067.6,0.52869]
[1763476232725,0.03724413,3068.7,3067.6,0.00301032]
[1763476233229,0.3193,3067.9,3067.6,0.00301032]
[1763476235135,0.00489309,3068.1,3067.6,0.00301032]
[1763476235425,0.03724413,3068.7,3067.6,0.00301032]
[1763476235624,0.03724413,3068.7,3068.3,0.52857]
[1763476235822,0.03724413,3068.7,3068.0,0.52861]
[1763476236027,0.03724413,3068.7,3067.6,0.00301032]
[1763476236422,0.00489309,3068.5,3067.6,0.00301032]
[1763476236620,0.00489309,3068.5,3067.8,0.52865]
[1763476236821,0.00489309,3068.5,3068.0,0.52862]
[1763476237020,0.00489309,3068.5,3068.1,0.5286]
[1763476237232,0.00489309,3068.5,3068.3,0.52856]
[1763476237734,0.00489309,3068.5,3068.3,0.52857]
[1763476238130,0.00489309,3068.5,3067.9,1.12244827]
[1763476238333,0.3193,3070.8,3068.0,1.38084827]
[1763476238529,0.3193,3070.8,3068.9,0.52846]
[1763476238926,0.3193,3070.8,3068.7,1.12244827]
[1763476238927,0.3193,3070.8,3069.0,0.52845]
[1763476239124,0.3193,3070.8,3069.0,40.8]
[1763476239430,0.3193,3070.8,3069.0,41.92244827]
[1763476239730,0.3193,3070.0,3069.5,0.00489309]
[1763476239939,0.00489309,3070.1,3069.5,0.00489309]
[1763476240230,0.0205073,3070.6,3069.6,2.31444827]
[1763476240428,0.0205073,3070.6,3069.5,0.00489309]
[1763476240836,0.0205073,3070.6,3070.4,0.52821]
[1763476241045,0.0205073,3070.6,3070.4,0.00387927]
[1763476241334,0.0205073,3070.6,3070.4,0.53208927]
[1763476241542,0.0205073,3070.6,3070.4,0.00387927]
[1763476242332,6.0205073,3070.6,3069.5,0.00489309]
[1763476242535,0.0205073,3070.6,3069.5,0.00489309]
[1763476243035,0.3193,3070.0,3069.5,0.00489309]
[1763476243240,0.3193,3070.0,3068.4,0.52855]
[1763476243743,0.3193,3070.0,3068.4,0.00380476]
[1763476243744,3.2576,3069.9,3068.4,0.00380476]
[1763476243940,0.3193,3070.0,3068.4,0.00380476]
[1763476244237,0.3193,3069.0,3068.4,0.00380476]
[1763476244633,6.3193,3069.0,3067.7,1.29]
[1763476244941,0.3193,3069.0,3067.9,0.52863]
[1763476245135,0.3193,3069.0,3067.7,1.29]
[1763476245341,0.00489309,3068.7,3066.8,0.85000554]
[1763476245647,0.30889309,3068.7,3066.1,0.52895]
[1763476245829,10.569,3068.6,3066.1,0.00280987]
[1763476246339,3.26000001,3068.5,3067.0,0.00489309]
[1763476246530,0.3193,3066.8,3066.1,0.00280987]
[1763476246732,0.32187696,3066.8,3065.1,0.52912]
[1763476246926,0.32187696,3066.8,3065.2,0.52909]
[1763476247128,0.32187696,3066.8,3064.9,0.75316]
[1763476247341,0.32187696,3066.8,3064.9,0.224]
[1763476247542,0.00489309,3066.2,3065.8,0.52899]
[1763476247842,0.00489309,3066.2,3065.7,0.52901]
[1763476248049,0.3193,3065.7,3065.5,0.00489309]
[1763476248343,0.3193,3065.7,3064.9,0.00362587]
[1763476248736,0.3193,3065.7,3065.5,0.52904]
[1763476248937,0.00489309,3066.2,3064.9,0.00362587]
[1763476249144,0.00489309,3066.2,3065.3,0.52908]
[1763476249345,0.00489309,3066.2,3065.2,0.00489309]
[1763476249739,0.00489309,3066.2,3065.5,0.52905]
[1763476249939,0.00489309,3066.2,3065.2,0.00489309]
[1763476250336,0.3193,3065.0,3064.9,0.00362587]
[1763476250839,0.3193,3066.0,3064.9,0.53277587]
[1763476251039,0.3193,3066.0,3064.9,0.00362587]
[1763476251346,0.3193,3066.0,3065.1,0.52912]
[1763476251642,0.3193,3066.0,3065.2,0.5291]
[1763476251843,0.3193,3066.0,3064.9,0.00362587]
[1763476252035,0.3193,3065.0,3064.9,0.00362587]
[1763476252344,0.3193,3065.0,3064.9,2.587e-05]
[1763476254542,6.3193,3065.0,3063.7,0.0326408]
[1763476254739,0.00489309,3064.7,3063.7,0.0326408]
[1763476255241,0.3193,3064.0,3062.3,0.8527731]
[1763476255436,0.3193,3064.0,3062.5,0.52957]
[1763476255643,0.3193,3064.0,3060.9,2.28670483]
[1763476255644,0.3193,3063.0,3061.3,0.8527731]
[1763476255949,0.00489309,3062.5,3060.8,0.52986]
[1763476256148,0.00489309,3062.5,3060.0,0.8527731]
[1763476256444,0.00489309,3062.5,3059.6,3.6727731]
[1763476256646,0.00489309,3062.5,3060.8,0.52986]
[1763476256846,3.2664,3062.4,3059.6,2.82396924]
[1763476257044,0.00489309,3062.5,3060.3,0.52994]
[1763476257344,0.00489309,3062.5,3060.1,0.52998]
[1763476257544,11.31,3062.4,3059.6,0.00396924]
[1763476257734,3.082,3062.3,3060.6,0.52989]
[1763476257932,2.063,3062.3,3059.6,0.00396924]
[1763476258146,0.00489309,3062.5,3059.6,0.00396924]
[1763476258346,3.434,3062.4,3060.2,0.52996]
[1763476258545,3.434,3062.4,3059.6,0.00396924]
[1763476258739,3.434,3062.4,3060.5,0.52992]
[1763476258940,3.434,3062.4,3060.6,0.5299]
[1763476259136,0.00489309,3062.5,3060.6,0.52989]
[1763476259447,3.33,3062.4,3059.6,0.00396924]
[1763476259632,0.00489309,3062.5,3059.6,0.00396924]
[1763476259837,0.00489309,3062.5,3060.8,0.52986]
[1763476260040,0.00489309,3062.5,3059.8,2.937]
[1763476260441,0.00489309,3062.5,3060.9,0.52984]
[1763476260648,0.00489309,3062.5,3059.8,2.937]
[1763476260843,0.00489309,3062.5,3059.6,0.00396924]
[1763476260844,3.2664,3062.4,3059.6,0.00396924]
[1763476261044,0.2927,3060.0,3059.6,0.00396924]
[1763476261238,0.29545998,3060.0,3058.7,0.03269416]
[1763476261444,3.26800001,3059.9,3058.7,0.03269416]
[1763476261644,0.2927,3059.0,3058.7,0.03269416]
[1763476261850,0.2927,3059.0,3056.5,0.808]
[1763476262243,0.2927,3058.0,3056.6,40.8]
[1763476262442,0.2927,3058.0,3057.0,0.53052]
[1763476262639,0.2927,3057.0,3056.5,0.00401117]
[1763476262843,0.2927,3057.0,3054.2,0.8527731]
[1763476262844,0.2927,3057.0,3054.0,1.0018]
[1763476263043,0.2927,3057.0,3054.0,1.05876523]
[1763476263350,0.29760228,3056.0,3053.7,0.0327477]
[1763476263843,3.8028,3055.9,3053.9,0.53106]
[1763476264044,0.53,3055.9,3053.7,0.02907826]
[1763476264344,0.301314,3056.0,3053.7,0.02907826]
[1763476264345,0.2927,3054.7,3053.7,0.02907826]
[1763476264645,0.2927,3054.7,3051.7,0.53145]
[1763476264949,0.2927,3054.7,3051.1,0.05702254]
[1763476264950,10.59,3054.6,3051.4,0.53149]
[1763476265146,10.59,3054.6,3049.8,10.589]
[1763476265147,0.078,3054.5,3048.1,0.1504]
[1763476265344,0.00491126,3053.5,3048.6,8.226]
[1763476265543,0.00491126,3053.5,3049.3,0.0570489]
[1763476265544,0.00415085,3053.5,3049.3,0.0570489]
[1763476265746,3.2768,3053.4,3048.7,0.03671201]
[1763476265944,0.00491126,3051.4,3049.2,0.53188]
[1763476266247,0.88991126,3051.4,3049.6,0.5318]
[1763476266442,0.00491126,3051.4,3050.0,0.53174]
[1763476266644,0.00491126,3051.4,3048.7,0.03671201]
[1763476266645,0.2927,3051.6,3050.8,0.53161]
[1763476266847,0.2927,3052.8,3049.4,0.255]
[1763476267038,0.2927,3052.8,3049.5,3.2768]
[1763476267441,0.2927,3052.8,3048.7,0.03671201]
[1763476267946,0.29761126,3051.1,3048.7,0.03671201]
[1763476268150,0.2927,3052.8,3048.8,0.01]
[1763476268342,0.2927,3052.8,3049.0,0.53191]
[1763476268545,0.2927,3052.8,3048.7,0.03671201]
[1763476268746,0.2927,3052.8,3049.7,0.53179]
[1763476268946,0.199,3052.7,3048.7,0.03671201]
[1763476269450,0.2927,3049.2,3046.3,10.603]
[1763476269652,0.2927,3049.2,3045.8,0.05708858]
[1763476269847,0.2927,3049.2,3044.0,3.002]
[1763476270148,8.5977,3049.2,3044.7,0.05713127]
[1763476270352,8.5977,3049.2,3046.3,0.53239]
[1763476270546,8.5977,3049.2,3044.8,3.74687226]
[1763476270753,0.2927,3047.2,3044.7,0.20832951]
[1763476270941,0.2927,3047.2,3044.7,0.15119824]
[1763476271142,0.2927,3047.2,3044.8,3.62181772]
[1763476271342,0.2927,3047.2,3045.4,0.53255]
[1763476271545,0.00492165,3047.3,3045.5,40.8]
[1763476271754,0.29516732,3049.2,3046.5,0.53234]
[1763476271951,3.36816732,3049.2,3045.5,40.8]
[1763476272148,0.29516732,3049.2,3045.5,40.8]
[1763476272356,0.29516732,3049.2,3045.6,3.75140045]
[1763476272549,0.29516732,3049.2,3047.5,0.53217]
[1763476272754,0.00492165,3048.7,3048.0,0.00492165]
[1763476272954,0.00246732,3049.2,3048.0,0.00492165]
[1763476273158,0.00246732,3049.2,3048.1,40.8]
[1763476273560,0.00246732,3049.2,3048.0,0.00492165]
[1763476274050,0.00492165,3048.9,3048.0,0.00492165]
[1763476274449,0.00492165,3048.9,3048.7,0.53196]
[1763476274661,0.2927,3050.4,3048.1,3.28]
[1763476274854,0.2927,3050.4,3048.0,0.00492165]
[1763476274855,0.2927,3050.4,3048.8,0.53194]
[1763476275156,0.2927,3050.4,3048.0,0.00492165]
[1763476275157,0.2927,3050.4,3048.1,40.8]
[1763476275361,0.2927,3052.4,3050.1,0.53172]
[1763476275558,0.00492165,3050.9,3050.3,0.00492165]
[1763476276351,9.2776,3050.8,3047.7,1.333]
[1763476276554,0.2957942,3051.1,3047.7,1.333]
[1763476276764,2.758,3051.0,3048.7,0.53196]
[1763476277148,2.758,3051.0,3047.7,1.333]
[1763476277350,0.00492165,3049.7,3049.0,0.00492165]
[1763476277557,0.2957942,3051.1,3049.0,0.00492165]
[1763476277558,0.2957942,3051.1,3049.1,1.224]
[1763476277758,0.2957942,3051.1,3050.0,0.53173]
[1763476277958,0.2957942,3051.1,3050.0,0.00315424]
[1763476278264,0.2957942,3051.1,3050.9,0.53158]
[1763476278265,0.0030942,3051.1,3050.9,0.53158]
[1763476278570,9.95760228,3053.7,3050.9,0.53158]
[1763476278571,9.95760228,3053.7,3050.9,6.0]
[1763476278763,9.95760228,3053.7,3050.7,0.00492165]
[1763476279060,16.87,3053.6,3050.9,0.53158]
[1763476279367,7.728,3053.5,3051.0,0.53156]
[1763476279658,0.00492165,3052.6,3050.7,0.00492165]
[1763476280167,0.2913,3052.4,3050.7,0.00492165]
[1763476280661,0.4613,3052.4,3050.7,0.00492165]
[1763476281758,0.2913,3051.1,3050.7,0.00492165]
[1763476281958,0.29369893,3051.1,3050.0,0.00315424]
[1763476282361,10.4416,3051.0,3048.3,0.53203]
[1763476282571,1.164,3051.0,3047.3,41.936]
[1763476282758,1.164,3051.0,3047.3,1.136]
[1763476282951,1.164,3051.0,3044.6,0.0863]
[1763476282952,0.00492165,3049.5,3048.8,0.00492165]
[1763476283258,1.702,3049.4,3048.8,0.00290675]
[1763476283463,4.98120001,3049.4,3046.0,40.8]
[1763476283666,3.2808,3049.3,3046.0,49.186]
[1763476283857,3.2808,3049.3,3046.7,0.53232]
[1763476284057,0.00492165,3048.3,3047.7,0.00492165]
[1763476284565,0.2913,3047.8,3045.7,5.14]
[1763476284861,0.2913,3047.8,3045.3,0.53256]
[1763476285064,0.2913,3047.8,3045.0,0.53262]
[1763476285260,0.455,3047.7,3045.2,0.53257]
[1763476285467,14.2027,3047.8,3046.1,0.53242]
[1763476285468,0.2913,3047.8,3046.1,0.53242]
[1763476285672,0.00251347,3048.3,3046.1,0.00492165]
[1763476285959,0.00251347,3048.3,3047.3,0.53221]
[1763476286158,0.00251347,3048.3,3046.1,0.00492165]
[1763476286459,0.00251347,3048.3,3046.9,0.53227]
[1763476286667,0.00492165,3047.9,3046.9,0.53227]
[1763476286861,0.00492165,3047.9,3047.7,0.53214]
[1763476287063,0.00251347,3048.3,3048.1,0.53206]
[1763476287261,0.035,3050.1,3048.2,0.53205]
[1763476287456,1.14692561,3053.6,3047.7,3.28311384]
[1763476287668,0.2913,3053.7,3047.7,3.28311384]
[1763476287669,0.168,3050.8,3047.7,0.00311384]
[1763476287961,0.00492165,3049.1,3048.4,0.00492165]
[1763476288169,0.0085286,3049.1,3048.4,0.00492165]
[1763476288967,0.0085286,3049.1,3048.9,0.53193]
[1763476289163,0.0085286,3049.1,3048.4,0.00492165]
[1763476289164,1.443,3050.6,3049.6,0.53181]
[1763476289367,10.9253,3051.1,3049.4,0.53184]
[1763476289554,0.2913,3051.1,3050.2,0.53169]
[1763476289759,0.2913,3051.1,3048.5,3.93144219]
[1763476289960,0.2913,3051.1,3049.5,0.53182]
[1763476290262,0.00492165,3050.6,3050.4,0.53167]
[1763476290463,0.004249,3051.1,3050.0,0.00492165]
[1763476290665,0.004249,3051.1,3050.2,0.53171]
[1763476290869,0.004249,3051.1,3050.5,0.53165]
[1763476291072,0.004249,3051.1,3051.0,0.53157]
[1763476291366,1.111,3052.8,3050.1,3.2776]
[1763476291367,0.00492165,3051.4,3050.1,3.2776]
[1763476291662,0.2913,3053.7,3052.1,0.53137]
[1763476291864,0.2913,3053.7,3050.7,7.218]
[1763476292161,0.2913,3053.7,3052.4,0.53132]
[1763476292366,0.2913,3053.7,3051.1,0.82552891]
[1763476292367,0.29494987,3053.7,3051.3,0.82552891]
[1763476292558,0.00315273,3052.8,3052.2,0.00491336]
[1763476292758,0.29494987,3053.7,3052.2,0.00491336]
[1763476293061,0.00364987,3053.7,3052.2,0.00491336]
[1763476293261,0.28604987,3053.7,3052.2,0.00491336]
[1763476294065,0.00364987,3053.7,3052.2,0.00491336]
[1763476294265,0.00364987,3053.7,3052.3,0.53133]
[1763476294468,0.28604987,3053.7,3052.2,0.00491336]
[1763476294662,0.00491336,3053.3,3050.8,0.82552891]
[1763476294861,0.00491336,3053.3,3050.7,0.53547217]
[1763476295061,0.00491336,3053.3,3050.7,0.00386217]
[1763476295258,0.00491336,3053.3,3051.0,0.53156]
[1763476295462,0.00491336,3053.3,3050.7,0.00386217]
[1763476295664,0.00491336,3053.3,3051.7,0.00491336]
[1763476296672,0.2824,3052.4,3050.7,0.00386217]
[1763476296862,0.2824,3052.4,3049.4,0.53185]
[1763476297063,0.2824,3052.4,3048.8,5.37152891]
[1763476297264,0.2824,3052.4,3049.6,0.53181]
[1763476297461,0.2824,3052.4,3048.9,0.82552891]
[1763476297668,0.00491336,3051.0,3050.3,0.00491336]
[1763476297970,0.00750961,3051.0,3050.3,0.54049615]
[1763476298168,0.00750961,3051.0,3050.3,0.00881615]
[1763476298463,0.2824,3052.4,3050.3,0.00881615]
[1763476299467,0.00491336,3051.7,3050.3,0.00881615]
[1763476301367,0.00491336,3051.7,3050.7,0.53161]
[1763476301572,0.00491336,3051.7,3050.9,0.53158]
[1763476301758,0.00491336,3051.7,3050.3,0.00881615]
[1763476301960,0.2824,3051.6,3050.6,0.53164]
[1763476302165,0.2824,3051.6,3050.3,0.00881615]
[1763476302378,0.2824,3051.6,3050.5,0.53165]
[1763476302576,0.2824,3051.6,3050.4,0.53167]
[1763476302768,0.2824,3051.6,3050.3,0.00881615]
[1763476303369,0.2824,3050.4,3048.9,0.82552891]
[1763476303576,0.2824,3050.4,3048.4,0.89585567]
[1763476304470,0.2824,3049.2,3048.4,0.89891308]
[1763476304676,0.28556962,3049.2,3048.4,0.89891308]
[1763476305470,0.28556962,3049.2,3048.5,0.00491336]
[1763476305768,0.00316962,3049.2,3048.5,0.00491336]
[1763476306468,0.00316962,3049.2,3048.5,0.00847647]
[1763476306775,6.0,3049.1,3047.4,0.82552891]
[1763476306965,0.17416962,3049.2,3046.8,0.2698]
[1763476307166,0.17416962,3049.2,3046.8,0.8021]
[1763476307365,0.17416962,3049.2,3046.4,0.53237]
[1763476307676,0.17416962,3049.2,3045.9,0.0901]
[1763476307677,3.45496962,3049.2,3045.9,0.0901]
[1763476307974,0.00492165,3047.9,3047.2,0.00492165]
[1763476308476,3.2808,3047.8,3045.9,0.00263405]
[1763476308667,2.56,3047.7,3045.9,0.00263405]
[1763476308873,0.00492165,3047.9,3045.9,0.00263405]
[1763476309069,0.00492165,3047.9,3045.9,0.27243405]
[1763476309271,0.00492165,3047.9,3046.3,0.53238]
[1763476309474,0.00492165,3047.9,3046.8,0.00492165]
[1763476310075,0.00492165,3047.9,3047.0,0.53226]
[1763476310275,0.331,3049.5,3046.8,0.00492165]
[1763476310583,0.331,3049.5,3047.1,0.53224]
[1763476310779,0.331,3049.5,3046.8,0.00492165]
[1763476311178,0.331,3049.5,3047.0,0.53226]
[1763476311377,0.00492165,3048.3,3047.0,0.53226]
[1763476311577,0.00492165,3048.3,3047.1,0.53224]
[1763476311775,0.00316962,3049.2,3046.8,3.28572165]
[1763476311975,0.00316962,3049.2,3048.4,0.53202]